[Event "Asian Amateur Rapid 2024"]
[Site "Al Ain"]
[Date "2024.12.15"]
[Round "5.2"]
[White "Abdulrahim, Salem"]
[Black "Mujahid Bin Yazeed"]
[Result "1-0"]
[ECO "B54"]
[WhiteElo "1843"]
[BlackElo "1837"]
[Annotator "NA COMBH"]
[PlyCount "90"]
[EventDate "2024.12.15"]
[EventType "swiss"]
[EventCountry "UAE"]
[SourceTitle "playchess.com"]
[Source "ChessBase"]
[SourceQuality "1"]
[TimeControl "900+10"]

1. e4 {[%emt 0:00:03]} c5 {[%emt 0:00:12]} 2. Nf3 {[%emt 0:00:03]} Nc6 {[%emt 0:00:06]} 3. d4 {[%emt 0:00:03]} cxd4 {[%emt 0:00:03]} 4. Nxd4 {[%emt 0:00:01]} d6 {[%emt 0:00:50]} 5. Nc3 {[%emt 0:00:18]} e5 {[%emt 0:00:36]} 6. Nf3 {[%emt 0:00:33]} h6 {[%emt 0:01:11]} 7. h3 {[%emt 0:00:33]} Be6 {[%emt 0:00:10]} 8. Bb5 {[%emt 0:00:22]} a6 {[%emt 0:00:56]} 9. Ba4 {[%emt 0:00:11]} Nf6 {[%emt 0:00:25]} 10. Bb3 {[%emt 0:01:02]} Be7 {[%emt 0:00:47]} 11. O-O {[%emt 0:00:31]} Qd7 {[%emt 0:00:18]} 12. Re1 {[%emt 0:00:09]} Bxh3 {[%emt 0:00:57]} 13. gxh3 {[%emt 0:00:11]} Qxh3 {[%emt 0:00:03]} 14. Nh2 {[%emt 0:00:10]} h5 {[%emt 0:00:57]} 15. Qf3 {[%emt 0:00:19]} Qd7 {[%emt 0:00:34]} 16. Nd5 {[%emt 0:01:21]} Nd4 {[%emt 0:00:59]} 17. Qg2 {[%emt 0:00:39]} Nxd5 {[%emt 0:00:52]} 18. exd5 {[%emt 0:00:32]} O-O-O {[%emt 0:00:16]} 19. Be3 {[%emt 0:00:12]} Nf5 {[%emt 0:00:23]} 20. Ba7 {[%emt 0:04:22]} Qc7 {[%emt 0:02:04]} 21. Qe4 {[%emt 0:02:38]} b6 {[%emt 0:01:42]} 22. Qxf5+ {[%emt 0:00:07]} Kb7 {[%emt 0:00:02]} 23. Bxb6 {[%emt 0:00:10]} Qxb6 {[%emt 0:00:34]} 24. Ba4 {[%emt 0:00:03]} Bh4 {[%emt 0:00:56]} 25. Re3 {[%emt 0:00:24]} Qc7 {[%emt 0:00:37]} 26. Rb3+ {[%emt 0:01:31]} Ka7 {[%emt 0:00:04]} 27. Qe4 {[%emt 0:00:09]} Bg5 {[%emt 0:00:28]} 28. Rc3 {[%emt 0:00:46]} Qe7 {[%emt 0:00:58]} 29. Qc4 {[%emt 0:00:32]} Rc8 {[%emt 0:00:31]} 30. Bc6 {[%emt 0:00:04]} Rb8 {[%emt 0:00:39]} 31. b4 {[%emt 0:00:12]} Bf4 {[%emt 0:00:37]} 32. Ra3 {[%emt 0:00:27]} Qg5+ {[%emt 0:00:09]} 33. Kh1 {[%emt 0:00:12]} Rb6 {[%emt 0:00:04]} 34. Qf1 {[%emt 0:00:34]} Qh4 {[%emt 0:00:09]} 35. Qg2 {[%emt 0:00:04]} Rxb4 {[%emt 0:00:23]} 36. Rb3 {[%emt 0:00:34]} Rhb8 {[%emt 0:00:11]} 37. Rab1 {[%emt 0:00:03]} Bxh2 {[%emt 0:00:17]} 38. Qxh2 {[%emt 0:01:25]} Qe4+ {[%emt 0:00:04]} 39. Qg2 {[%emt 0:00:00]} Qh4+ {[%emt 0:00:03]} 40. Qh2 {[%emt 0:00:00]} Qe4+ {[%emt 0:00:18]} 41. Kg1 {[%emt 0:00:00]} Qg6+ {[%emt 0:00:06]} 42. Kf1 {[%emt 0:00:00]} a5 {[%emt 0:00:18]} 43. Rxb4 {[%emt 0:00:06]} axb4 {[%emt 0:00:01]} 44. Qg3 {[%emt 0:00:18]} Qe4 {[%emt 0:00:20]} 45. Qxg7 {[%emt 0:00:31] Check Result:3.70} Qf3 {[%emt 0:00:30]} 1-0

[Event "Asian Amateur Rapid 2024"]
[Site "Al Ain"]
[Date "2024.12.15"]
[Round "5.3"]
[White "Hamdan Edrees, Alhamed"]
[Black "Mohamed Saeed Laily"]
[Result "0-1"]
[ECO "D35"]
[WhiteElo "1939"]
[BlackElo "1984"]
[Annotator "NA COMBH"]
[PlyCount "141"]
[EventDate "2024.12.15"]
[EventType "swiss"]
[EventCountry "UAE"]
[SourceTitle "playchess.com"]
[Source "ChessBase"]
[SourceQuality "1"]
[TimeControl "900+10"]

1. Nf3 {[%emt 0:00:02]} d5 {[%emt 0:00:02]} 2. g3 {[%emt 0:00:03]} Nc6 {[%emt 0:00:01]} 3. d4 {[%emt 0:00:01]} Bf5 {[%emt 0:00:01]} 4. c4 {[%emt 0:00:17]} e6 {[%emt 0:00:06]} 5. cxd5 {[%emt 0:00:08]} exd5 {[%emt 0:00:08]} 6. Bg2 {[%emt 0:00:01]} Nf6 {[%emt 0:00:53]} 7. O-O {[%emt 0:00:04]} Be7 {[%emt 0:00:07]} 8. Nc3 {[%emt 0:00:02]} O-O {[%emt 0:00:25]} 9. Bf4 {[%emt 0:00:36]} Ne4 {[%emt 0:05:19]} 10. Qb3 {[%emt 0:02:49]} Nxc3 {[%emt 0:00:40]} 11. bxc3 {[%emt 0:00:04]} Na5 {[%emt 0:00:03]} 12. Qd1 {[%emt 0:01:25]} Nc4 {[%emt 0:00:47]} 13. Nd2 {[%emt 0:00:04]} Nxd2 {[%emt 0:00:18]} 14. Qxd2 {[%emt 0:00:02]} c6 {[%emt 0:00:03]} 15. Qb2 {[%emt 0:12:02]} Qb6 {[%emt 0:00:24]} 16. Qd2 {[%emt 0:00:00]} Ba3 {[%emt 0:00:44]} 17. Rae1 {[%emt 0:00:00]} Rfe8 {[%emt 0:00:34]} 18. f3 {[%emt 0:00:00]} Rad8 {[%emt 0:01:05]} 19. e4 {[%emt 0:00:00]} Bg6 {[%emt 0:00:21]} 20. Rb1 {[%emt 0:00:00]} Qa6 {[%emt 0:00:30]} 21. Rfe1 {[%emt 0:00:00]} c5 {[%emt 0:02:13]} 22. Bf1 {[%emt 0:00:00]} c4 {[%emt 0:00:01]} 23. Bg2 {[%emt 0:00:00]} b5 {[%emt 0:00:25]} 24. Re2 {[%emt 0:00:00]} Qa4 {[%emt 0:01:21]} 25. Rbe1 {[%emt 0:00:00]} dxe4 {[%emt 0:00:12]} 26. fxe4 {[%emt 0:00:00]} b4 {[%emt 0:00:22]} 27. g4 {[%emt 0:00:00]} Qa5 {[%emt 0:00:18]} 28. h4 {[%emt 0:00:00]} bxc3 {[%emt 0:00:26]} 29. Qc2 {[%emt 0:00:00]} h5 {[%emt 0:00:18]} 30. Bf3 {[%emt 0:00:00]} Rxd4 {[%emt 0:00:35]} 31. Rg2 {[%emt 0:00:00]} hxg4 {[%emt 0:00:20]} 32. Rxg4 {[%emt 0:00:00]} Bh5 {[%emt 0:00:29]} 33. Rg5 {[%emt 0:00:00]} Bc5 {[%emt 0:00:40]} 34. Kg2 {[%emt 0:00:55]} Bxf3+ {[%emt 0:00:08]} 35. Kxf3 {[%emt 0:00:01]} Rd3+ {[%emt 0:00:09]} 36. Kg2 {[%emt 0:00:01]} Qb6 {[%emt 0:00:15]} 37. Qe2 {[%emt 0:00:52]} Qf6 {[%emt 0:00:19]} 38. Qg4 {[%emt 0:00:05]} Rd2+ {[%emt 0:00:11]} 39. Bxd2 {[%emt 0:00:16]} cxd2 {[%emt 0:00:03]} 40. Rf1 {[%emt 0:00:02]} Qd4 {[%emt 0:00:13]} 41. Qf4 {[%emt 0:00:42]} Rf8 {[%emt 0:00:20]} 42. Rd5 {[%emt 0:00:08]} Qe3 {[%emt 0:00:09]} 43. Rxd2 {[%emt 0:00:05]} Qxf4 {[%emt 0:00:09]} 44. Rxf4 {[%emt 0:00:05]} Be3 {[%emt 0:00:00]} 45. Rff2 {[%emt 0:00:02]} Bxd2 {[%emt 0:00:01]} 46. Rxd2 {[%emt 0:00:01]} c3 {[%emt 0:00:14]} 47. Rc2 {[%emt 0:00:01]} Rc8 {[%emt 0:00:01]} 48. Kf3 {[%emt 0:00:01]} Kf8 {[%emt 0:00:01]} 49. Ke3 {[%emt 0:00:01]} Ke7 {[%emt 0:00:01]} 50. Kd4 {[%emt 0:00:01]} Ke6 {[%emt 0:00:43]} 51. a4 {[%emt 0:00:05]} a5 {[%emt 0:00:15]} 52. Rxc3 {[%emt 0:01:35]} Rxc3 {[%emt 0:00:01]} 53. Kxc3 {[%emt 0:00:01]} Ke5 {[%emt 0:00:01]} 54. Kc4 {[%emt 0:00:01]} Kxe4 {[%emt 0:00:01]} 55. Kb5 {[%emt 0:00:01]} f5 {[%emt 0:00:05]} 56. Kxa5 {[%emt 0:00:01]} f4 {[%emt 0:00:01]} 57. Kb6 {[%emt 0:00:02]} f3 {[%emt 0:00:01]} 58. a5 {[%emt 0:00:00]} f2 {[%emt 0:00:01]} 59. a6 {[%emt 0:00:01]} f1=Q {[%emt 0:00:02]} 60. a7 {[%emt 0:00:01]} Qb1+ {[%emt 0:00:19]} 61. Kc7 {[%emt 0:00:01]} Qc2+ {[%emt 0:00:02]} 62. Kb6 {[%emt 0:00:05]} Qa4 {[%emt 0:00:04]} 63. h5 {[%emt 0:00:16]} Kf5 {[%emt 0:00:51]} 64. Kb7 {[%emt 0:00:04]} Kg5 {[%emt 0:00:20]} 65. a8=Q {[%emt 0:00:03]} Qxa8+ {[%emt 0:00:01]} 66. Kxa8 {[%emt 0:00:01]} Kxh5 {[%emt 0:00:01]} 67. Kb7 {[%emt 0:00:01]} g5 {[%emt 0:00:02]} 68. Kc6 {[%emt 0:00:02]} g4 {[%emt 0:00:03]} 69. Kd5 {[%emt 0:00:00]} g3 {[%emt 0:00:05]} 70. Ke4 {[%emt 0:00:02]} g2 {[%emt 0:00:01] Check Result:-#10} 71. Kd4 {[%emt 0:00:00]} 0-1

[Event "Asian Amateur Rapid 2024"]
[Site "Al Ain"]
[Date "2024.12.15"]
[Round "5.4"]
[White "Lovakov, Egor Vlad"]
[Black "Farhaan, M."]
[Result "1-0"]
[ECO "D94"]
[WhiteElo "1763"]
[BlackElo "1695"]
[Annotator "NA COMBH"]
[PlyCount "99"]
[EventDate "2024.12.15"]
[EventType "swiss"]
[EventCountry "UAE"]
[SourceTitle "playchess.com"]
[Source "ChessBase"]
[SourceQuality "1"]
[TimeControl "900+10"]

1. d4 {[%emt 0:00:02]} Nf6 {[%emt 0:00:01]} 2. c4 {[%emt 0:00:01]} c6 {[%emt 0:00:05]} 3. Nc3 {[%emt 0:00:03]} d5 {[%emt 0:00:01]} 4. Nf3 {[%emt 0:00:02]} g6 {[%emt 0:00:08]} 5. h3 {[%emt 0:00:10]} Bg7 {[%emt 0:00:01]} 6. e3 {[%emt 0:00:25]} a6 {[%emt 0:00:07]} 7. c5 {[%emt 0:00:15]} O-O {[%emt 0:00:07]} 8. Bd3 {[%emt 0:00:04]} Nfd7 {[%emt 0:00:03]} 9. O-O {[%emt 0:01:07]} e5 {[%emt 0:00:01]} 10. Nxe5 {[%emt 0:00:30]} Nxe5 {[%emt 0:00:03]} 11. dxe5 {[%emt 0:00:02]} Bxe5 {[%emt 0:00:08]} 12. e4 {[%emt 0:01:20]} Be6 {[%emt 0:01:31]} 13. exd5 {[%emt 0:01:33]} Bxd5 {[%emt 0:00:01]} 14. Qc2 {[%emt 0:01:54]} Nd7 {[%emt 0:01:11]} 15. Nxd5 {[%emt 0:00:53]} cxd5 {[%emt 0:00:01]} 16. Rb1 {[%emt 0:01:05]} a5 {[%emt 0:01:18]} 17. a3 {[%emt 0:02:03]} a4 {[%emt 0:00:37]} 18. Be3 {[%emt 0:00:36]} Rc8 {[%emt 0:00:22]} 19. Qxa4 {[%emt 0:00:42]} d4 {[%emt 0:00:02]} 20. Bxd4 {[%emt 0:00:58]} Nb6 {[%emt 0:01:46]} 21. cxb6 {[%emt 0:00:09]} Bxd4 {[%emt 0:00:01]} 22. Be4 {[%emt 0:00:55]} Qxb6 {[%emt 0:00:01]} 23. Bxb7 {[%emt 0:00:06]} Bxf2+ {[%emt 0:01:44]} 24. Rxf2 {[%emt 0:00:01]} Qxb7 {[%emt 0:00:01]} 25. Qf4 {[%emt 0:00:58]} Ra8 {[%emt 0:00:08]} 26. Qf3 {[%emt 0:00:08]} Qb5 {[%emt 0:00:21]} 27. Rc1 {[%emt 0:00:36]} Ra7 {[%emt 0:00:05]} 28. Kh1 {[%emt 0:00:18]} Rd8 {[%emt 0:01:08]} 29. Rfc2 {[%emt 0:00:30]} Rad7 {[%emt 0:00:24]} 30. Qe2 {[%emt 0:00:43]} Qb8 {[%emt 0:01:03]} 31. b4 {[%emt 0:00:49]} Re8 {[%emt 0:00:12]} 32. Qc4 {[%emt 0:00:37]} Rde7 {[%emt 0:00:05]} 33. Qc3 {[%emt 0:00:08]} Re3 {[%emt 0:00:01]} 34. Qxe3 {[%emt 0:00:09]} Rxe3 {[%emt 0:00:21]} 35. Rc8+ {[%emt 0:00:00]} Qxc8 {[%emt 0:00:05]} 36. Rxc8+ {[%emt 0:00:01]} Kg7 {[%emt 0:00:01]} 37. a4 {[%emt 0:00:05]} Rb3 {[%emt 0:00:07]} 38. Rb8 {[%emt 0:00:23]} Kf6 {[%emt 0:00:07]} 39. a5 {[%emt 0:00:05]} Ra3 {[%emt 0:00:03]} 40. Rb6+ {[%emt 0:00:05]} Ke5 {[%emt 0:00:02]} 41. a6 {[%emt 0:00:56]} Kf4 {[%emt 0:00:14]} 42. Kh2 {[%emt 0:00:05]} f5 {[%emt 0:00:11]} 43. b5 {[%emt 0:00:04]} g5 {[%emt 0:00:02]} 44. Rc6 {[%emt 0:00:17]} h5 {[%emt 0:00:11]} 45. Rc4+ {[%emt 0:00:18]} Ke3 {[%emt 0:00:10]} 46. Rb4 {[%emt 0:00:10]} g4 {[%emt 0:00:48]} 47. hxg4 {[%emt 0:00:12]} hxg4 {[%emt 0:00:05]} 48. b6 {[%emt 0:00:10]} Rxa6 {[%emt 0:00:23]} 49. b7 {[%emt 0:00:13]} f4 {[%emt 0:01:50] Check Result:#9} 50. b8=Q {[%emt 0:00:10]} 1-0

[Event "Asian Amateur Rapid 2024"]
[Site "Al Ain"]
[Date "2024.12.15"]
[Round "5.5"]
[White "Bigabylov, Zhuban"]
[Black "Adel, Tahseen Khalil"]
[Result "1-0"]
[ECO "E09"]
[WhiteElo "1907"]
[BlackElo "1833"]
[Annotator "NA COMBH"]
[PlyCount "72"]
[EventDate "2024.12.15"]
[EventType "swiss"]
[EventCountry "UAE"]
[SourceTitle "playchess.com"]
[Source "ChessBase"]
[SourceQuality "1"]
[TimeControl "900+10"]

1. d4 {[%emt 0:00:02]} d5 {[%emt 0:00:01]} 2. c4 {[%emt 0:00:02]} e6 {[%emt 0:00:02]} 3. Nf3 {[%emt 0:00:02]} Nf6 {[%emt 0:00:02]} 4. g3 {[%emt 0:00:01]} Be7 {[%emt 0:00:07]} 5. Bg2 {[%emt 0:00:02]} Nbd7 {[%emt 0:00:08]} 6. O-O {[%emt 0:00:05]} c6 {[%emt 0:00:12]} 7. Qc2 {[%emt 0:00:03]} O-O {[%emt 0:00:09]} 8. Nbd2 {[%emt 0:00:02]} Re8 {[%emt 0:00:50]} 9. e4 {[%emt 0:00:05]} dxe4 {[%emt 0:00:07]} 10. Nxe4 {[%emt 0:00:02]} Nxe4 {[%emt 0:00:04]} 11. Qxe4 {[%emt 0:00:02]} Nf6 {[%emt 0:00:02]} 12. Qe2 {[%emt 0:00:14]} Qc7 {[%emt 0:01:35]} 13. Bf4 {[%emt 0:00:32]} Bd6 {[%emt 0:00:18]} 14. Ne5 {[%emt 0:00:05]} c5 {[%emt 0:00:18]} 15. Rfd1 {[%emt 0:03:18]} Nd7 {[%emt 0:04:10]} 16. Nxd7 {[%emt 0:01:36]} Bxf4 {[%emt 0:00:04]} 17. Nxc5 {[%emt 0:00:33]} Bh6 {[%emt 0:00:09]} 18. Qe5 {[%emt 0:01:41]} Qe7 {[%emt 0:01:11]} 19. Ne4 {[%emt 0:00:23]} Rd8 {[%emt 0:02:13]} 20. Qc5 {[%emt 0:02:41]} Qe8 {[%emt 0:00:57]} 21. Qa3 {[%emt 0:01:24]} a6 {[%emt 0:02:02]} 22. Nd6 {[%emt 0:00:38]} Qd7 {[%emt 0:00:25]} 23. c5 {[%emt 0:00:06]} Rb8 {[%emt 0:00:46]} 24. b4 {[%emt 0:00:43]} g6 {[%emt 0:00:29]} 25. d5 {[%emt 0:00:15]} Qe7 {[%emt 0:01:13]} 26. Re1 {[%emt 0:00:36]} Rxd6 {[%emt 0:00:39]} 27. cxd6 {[%emt 0:00:03]} Qxd6 {[%emt 0:00:03]} 28. dxe6 {[%emt 0:01:36]} Bxe6 {[%emt 0:00:01]} 29. Rad1 {[%emt 0:00:03]} Qc7 {[%emt 0:00:28]} 30. Bd5 {[%emt 0:00:11]} Bg4 {[%emt 0:00:24]} 31. Rd4 {[%emt 0:00:19]} Bf5 {[%emt 0:00:06]} 32. Qf3 {[%emt 0:01:07]} Rd8 {[%emt 0:00:45]} 33. Red1 {[%emt 0:00:03]} Rf8 {[%emt 0:00:05]} 34. Bxb7 {[%emt 0:00:40]} Bg7 {[%emt 0:00:05]} 35. Rd6 {[%emt 0:00:32]} a5 {[%emt 0:00:26]} 36. b5 {[%emt 0:00:21] Check Result:4.47} Be6 {[%emt 0:00:34]} 1-0

[Event "Asian Amateur Rapid 2024"]
[Site "Al Ain"]
[Date "2024.12.15"]
[Round "5.6"]
[White "Ghaith Saeed Alnuaimi"]
[Black "Khalifah, Khaled"]
[Result "0-1"]
[ECO "E60"]
[WhiteElo "1870"]
[BlackElo "1962"]
[Annotator "NA COMBH"]
[PlyCount "68"]
[EventDate "2024.12.15"]
[EventType "swiss"]
[EventCountry "UAE"]
[SourceTitle "playchess.com"]
[Source "ChessBase"]
[SourceQuality "1"]
[TimeControl "900+10"]

1. Nf3 {[%emt 0:00:03]} c5 {[%emt 0:00:01]} 2. b3 {[%emt 0:00:30]} Nf6 {[%emt 0:00:03]} 3. Bb2 {[%emt 0:00:01]} g6 {[%emt 0:00:01]} 4. c4 {[%emt 0:00:14]} Bg7 {[%emt 0:00:02]} 5. g3 {[%emt 0:00:01]} O-O {[%emt 0:00:06]} 6. Bg2 {[%emt 0:00:02]} Nc6 {[%emt 0:00:53]} 7. O-O {[%emt 0:00:03]} d6 {[%emt 0:02:22]} 8. d4 {[%emt 0:00:12]} cxd4 {[%emt 0:00:11]} 9. Nxd4 {[%emt 0:00:03]} Bd7 {[%emt 0:00:34]} 10. Nc2 {[%emt 0:00:29]} Qc8 {[%emt 0:00:48]} 11. Re1 {[%emt 0:01:34]} Bh3 {[%emt 0:00:01]} 12. Bh1 {[%emt 0:00:01]} Qf5 {[%emt 0:01:00]} 13. e4 {[%emt 0:00:37]} Qc5 {[%emt 0:00:13]} 14. Ne3 {[%emt 0:01:04]} Ne5 {[%emt 0:01:12]} 15. Nc3 {[%emt 0:00:57]} Neg4 {[%emt 0:00:26]} 16. Qe2 {[%emt 0:02:50]} Nxe3 {[%emt 0:00:44]} 17. Qxe3 {[%emt 0:00:01]} Qh5 {[%emt 0:00:01]} 18. f3 {[%emt 0:01:52]} Be6 {[%emt 0:00:21]} 19. Rad1 {[%emt 0:00:10]} Qa5 {[%emt 0:00:52]} 20. Bg2 {[%emt 0:00:28]} h5 {[%emt 0:00:19]} 21. Qf2 {[%emt 0:01:00]} a6 {[%emt 0:01:28]} 22. Nd5 {[%emt 0:00:08]} Bxd5 {[%emt 0:00:49]} 23. exd5 {[%emt 0:00:02]} Qxa2 {[%emt 0:00:02]} 24. Rb1 {[%emt 0:03:46]} b5 {[%emt 0:01:12]} 25. Bf1 {[%emt 0:00:36]} Rfb8 {[%emt 0:01:32]} 26. Ra1 {[%emt 0:00:48]} Qxb3 {[%emt 0:00:22]} 27. Reb1 {[%emt 0:00:01]} bxc4 {[%emt 0:01:26]} 28. Bxf6 {[%emt 0:00:02]} Bxf6 {[%emt 0:00:08]} 29. Rxb3 {[%emt 0:00:02]} cxb3 {[%emt 0:00:01]} 30. Rb1 {[%emt 0:02:22]} a5 {[%emt 0:00:01]} 31. Bd3 {[%emt 0:00:09]} a4 {[%emt 0:00:06]} 32. g4 {[%emt 0:00:10]} hxg4 {[%emt 0:00:02]} 33. fxg4 {[%emt 0:00:02]} Rb4 {[%emt 0:00:01]} 34. h3 {[%emt 0:00:11] Check Result:-30.75} Bd4 {[%emt 0:00:02]} 0-1

[Event "Asian Amateur Rapid 2024"]
[Site "Al Ain"]
[Date "2024.12.15"]
[Round "5.7"]
[White "Chekanov, Timur"]
[Black "Al Hosni, Khalfan"]
[Result "1-0"]
[ECO "A43"]
[WhiteElo "1865"]
[BlackElo "1749"]
[Annotator "NA COMBH"]
[PlyCount "145"]
[EventDate "2024.12.15"]
[EventType "swiss"]
[EventCountry "UAE"]
[SourceTitle "playchess.com"]
[Source "ChessBase"]
[SourceQuality "1"]
[TimeControl "900+10"]

1. d4 {[%emt 0:00:01]} Nf6 {[%emt 0:00:02]} 2. Nf3 {[%emt 0:00:02]} c5 {[%emt 0:00:01]} 3. d5 {[%emt 0:00:02]} g6 {[%emt 0:00:20]} 4. Nc3 {[%emt 0:00:36]} Bg7 {[%emt 0:00:05]} 5. e4 {[%emt 0:00:14]} d6 {[%emt 0:00:01]} 6. Bb5+ {[%emt 0:00:14]} Bd7 {[%emt 0:00:02]} 7. a4 {[%emt 0:01:00]} Qa5 {[%emt 0:00:32]} 8. O-O {[%emt 0:02:56]} Bxb5 {[%emt 0:00:20]} 9. Nxb5 {[%emt 0:00:02]} Nxe4 {[%emt 0:00:44]} 10. Qe2 {[%emt 0:02:00]} f5 {[%emt 0:00:28]} 11. Ng5 {[%emt 0:00:19]} O-O {[%emt 0:03:52]} 12. Nxe4 {[%emt 0:00:10]} fxe4 {[%emt 0:00:15]} 13. Qxe4 {[%emt 0:00:02]} Rf7 {[%emt 0:00:21]} 14. Qe6 {[%emt 0:00:35]} Na6 {[%emt 0:00:34]} 15. Bg5 {[%emt 0:00:40]} Nc7 {[%emt 0:00:24]} 16. Nxc7 {[%emt 0:00:45]} Qxc7 {[%emt 0:00:03]} 17. c3 {[%emt 0:03:45]} Raf8 {[%emt 0:00:09]} 18. Rae1 {[%emt 0:00:04]} Bf6 {[%emt 0:01:55]} 19. Bxf6 {[%emt 0:00:17]} exf6 {[%emt 0:00:04]} 20. Re2 {[%emt 0:01:56]} Kg7 {[%emt 0:00:22]} 21. Rfe1 {[%emt 0:00:02]} Rd8 {[%emt 0:00:01]} 22. h4 {[%emt 0:00:05]} Rdd7 {[%emt 0:00:03]} 23. h5 {[%emt 0:00:15]} Qa5 {[%emt 0:00:07]} 24. hxg6 {[%emt 0:00:34]} hxg6 {[%emt 0:00:07]} 25. Qe8 {[%emt 0:00:25]} Rd8 {[%emt 0:01:02]} 26. Qb5 {[%emt 0:01:23]} Qc7 {[%emt 0:00:02]} 27. a5 {[%emt 0:00:50]} Rh8 {[%emt 0:01:10]} 28. a6 {[%emt 0:00:22]} bxa6 {[%emt 0:01:00]} 29. Qxa6 {[%emt 0:00:04]} Qb6 {[%emt 0:01:52]} 30. Qxb6 {[%emt 0:00:15]} axb6 {[%emt 0:00:01]} 31. Re6 {[%emt 0:00:01]} Rd7 {[%emt 0:00:02]} 32. Re7+ {[%emt 0:00:01]} Rxe7 {[%emt 0:00:07]} 33. Rxe7+ {[%emt 0:00:01]} Kh6 {[%emt 0:00:01]} 34. Rd7 {[%emt 0:00:01]} Rb8 {[%emt 0:00:14]} 35. Rxd6 {[%emt 0:00:02]} Kg5 {[%emt 0:00:01]} 36. Re6 {[%emt 0:00:23]} Kf5 {[%emt 0:00:04]} 37. f3 {[%emt 0:00:17]} c4 {[%emt 0:00:22]} 38. g4+ {[%emt 0:00:29]} Kg5 {[%emt 0:00:01]} 39. Kf2 {[%emt 0:00:16]} b5 {[%emt 0:00:26]} 40. Kg3 {[%emt 0:00:07]} Rd8 {[%emt 0:00:48]} 41. f4+ {[%emt 0:00:03]} Kh6 {[%emt 0:00:02]} 42. d6 {[%emt 0:00:17]} Kg7 {[%emt 0:00:04]} 43. f5 {[%emt 0:00:02]} Kf7 {[%emt 0:00:11]} 44. Re7+ {[%emt 0:00:10]} Kf8 {[%emt 0:00:12]} 45. fxg6 {[%emt 0:00:20]} Rxd6 {[%emt 0:00:02]} 46. g7+ {[%emt 0:00:03]} Kg8 {[%emt 0:00:02]} 47. Rb7 {[%emt 0:00:02]} Rd5 {[%emt 0:00:14]} 48. Kf4 {[%emt 0:00:12]} Rg5 {[%emt 0:00:07]} 49. Kf3 {[%emt 0:00:13]} Rd5 {[%emt 0:00:18]} 50. Ke4 {[%emt 0:00:18]} Rg5 {[%emt 0:00:02]} 51. Kf4 {[%emt 0:00:11]} Rd5 {[%emt 0:00:11]} 52. Ke3 {[%emt 0:00:01]} Rg5 {[%emt 0:00:01]} 53. Kd4 {[%emt 0:00:19]} Rxg4+ {[%emt 0:00:08]} 54. Kc5 {[%emt 0:00:01]} Rg5+ {[%emt 0:00:02]} 55. Kc6 {[%emt 0:00:03]} Re5 {[%emt 0:00:09]} 56. Rxb5 {[%emt 0:00:09]} Re2 {[%emt 0:00:55]} 57. Kd5 {[%emt 0:00:26]} Kxg7 {[%emt 0:01:22]} 58. Kxc4 {[%emt 0:00:01]} Kg6 {[%emt 0:00:01]} 59. Kd3 {[%emt 0:00:01]} Re6 {[%emt 0:00:11]} 60. c4 {[%emt 0:00:28]} f5 {[%emt 0:00:02]} 61. c5 {[%emt 0:00:03]} Kg5 {[%emt 0:00:26]} 62. Rb6 {[%emt 0:00:07]} Re8 {[%emt 0:00:04]} 63. c6 {[%emt 0:00:22]} f4 {[%emt 0:00:04]} 64. Rb5+ {[%emt 0:00:12]} Kg4 {[%emt 0:00:05]} 65. c7 {[%emt 0:00:09]} Rc8 {[%emt 0:00:02]} 66. Rc5 {[%emt 0:00:11]} Kg3 {[%emt 0:00:06]} 67. Ke2 {[%emt 0:00:09]} Kg2 {[%emt 0:00:02]} 68. Rg5+ {[%emt 0:00:02]} Kh3 {[%emt 0:00:06]} 69. Rg7 {[%emt 0:00:04]} Kh4 {[%emt 0:00:13]} 70. Kf3 {[%emt 0:00:02]} Kh5 {[%emt 0:00:02]} 71. Kxf4 {[%emt 0:00:02]} Kh6 {[%emt 0:00:01]} 72. Rd7 {[%emt 0:00:01]} Kg6 {[%emt 0:00:04] Check Result:#16} 73. Ke5 {[%emt 0:00:02]} 1-0